fUSD/lending_fUSD_20260412
["ID","MTS","AMOUNT","RATE_DAILY","PERIOD"]
[420318737,1775962235103,-501.00208893,0.00014773,2]
[420318738,1775962235116,-500.0,0.00014779,2]
[420318739,1775962235126,-500.0,0.00014779,2]
[420318740,1775962235149,-500.0,0.00014779,2]
[420318741,1775962235159,-500.0,0.00014779,2]
[420318742,1775962235177,-500.0,0.00014779,2]
[420318743,1775962235190,-500.0,0.00014779,2]
[420318744,1775962235199,-333.85924145,0.00014779,2]
[420318745,1775962235212,-455.21999343,0.00014779,2]
[420318746,1775962235248,-44.78000657,0.00014779,2]
[420318747,1775962235260,-209.0527079,0.00014779,2]
[420318748,1775962238779,-290.9472921,0.00014779,2]
[420318750,1775962238789,-500.0,0.00014779,2]
[420318751,1775962238804,-500.0,0.00014779,2]
[420318752,1775962238818,-159.85582182,0.00014779,2]
[420318753,1775962238858,-340.14417818,0.00014779,2]
[420318754,1775962238880,-500.0,0.00014779,2]
[420318755,1775962238895,-500.0,0.00014779,2]
[420318756,1775962238915,-454.73317309,0.00014779,2]
[420318757,1775962238935,-2658.72264875,0.0001478,2]
[420318758,1775962238951,-1698.41755489,0.0001478,2]
[420318759,1775962239025,-258.39201329,0.0001478,2]
[420318765,1775962240758,-458.87313864,0.0001478,2]
[420318766,1775962240795,-1146.36127367,0.0001478,2]
[420318767,1775962240814,-272.24010028,0.0001478,2]
[420318768,1775962241247,-123.03599702,0.0001478,2]
[420318769,1775962241257,-500.0,0.0001478,2]
[420318770,1775962241267,-500.0,0.0001478,2]
[420318771,1775962241291,-500.0,0.0001478,2]
[420318772,1775962241303,-460.37020058,0.0001478,2]
[420318773,1775962241312,-500.0,0.0001478,2]
[420318774,1775962241322,-500.0,0.0001478,2]
[420318775,1775962241337,-500.0,0.0001478,2]
[420318776,1775962241349,-500.0,0.0001478,2]
[420318777,1775962241359,-500.0,0.0001478,2]
[420318778,1775962241368,-500.0,0.0001478,2]
[420318779,1775962241390,-500.0,0.0001478,2]
[420318780,1775962241400,-227.6304403,0.00014785,2]
[420318781,1775962241409,-1500.0,0.000148,5]
[420318782,1775962241428,-255.0,0.00014821,2]
[420318783,1775962241452,-152.99421981,0.000149,2]
[420318784,1775962241461,-152.99421979,0.000149,2]
[420318785,1775962241487,-2300.0,0.000149,5]
[420318786,1775962241499,-152.99421979,0.000149,2]
[420318787,1775962241509,-173.40492609,0.00014985,2]
[420318788,1775962241518,-832.95,0.00015068,2]
[420318789,1775962241542,-1294.70822615,0.00015154,2]
[420318790,1775962241552,-500.0,0.00015161,2]
[420318791,1775962241561,-500.0,0.00015161,2]
[420318792,1775962241574,-500.0,0.00015161,2]
[420318793,1775962241584,-536.0,0.00015161,2]
[420318794,1775962241594,-150.0,0.00015161,2]
[420318795,1775962241603,-179.91722233,0.00015161,2]
[420318796,1775962241615,-500.0,0.00015199,2]
[420318797,1775962241631,-670.58624095,0.00015199,2]
[420318798,1775962241640,-776.42563213,0.00015199,2]
[420318799,1775962241650,-151.0,0.00015199,2]
[420318800,1775962241660,-174.61919141,0.00015199,2]
[420318802,1775962241675,-290.26104003,0.00015199,2]
[420318803,1775962241685,-500.0,0.00015254,2]
[420318804,1775962241700,-211.51507167,0.000153,2]
[420318805,1775962241717,-500.0,0.00015309,2]
[420318806,1775962241731,-500.0,0.00015364,2]
[420318807,1775962241742,-500.0,0.00015419,2]
[420318808,1775962241755,-500.0,0.00015474,2]
[420318809,1775962241764,-500.0,0.00015529,2]
[420318810,1775962241786,-225.963638,0.0001568,2]
[420318811,1775962241796,-168.604271,0.0001568,2]
[420318812,1775962241813,-1000.0,0.000157,2]
[420318813,1775962241833,-158.56865268,0.00015747,2]
[420318814,1775962241844,-832.95,0.00015753,2]
[420318815,1775962241875,-500.0,0.00015799,2]
[420318816,1775962241884,-500.0,0.00015799,2]
[420318817,1775962241894,-1048.99691,0.0001584,2]
[420318818,1775962241904,-1048.99691,0.0001584,2]
[420318819,1775962241923,-1048.99692,0.0001585,2]
[420318820,1775962241933,-169.2837,0.0001587,2]
[420318821,1775962241943,-500.0,0.00015899,2]
[420318822,1775962241956,-3100.0,0.000159,5]
[420318823,1775962241971,-6703.75620528,0.000159,2]
[420318824,1775962241982,-1828.0,0.000159,5]
[420318825,1775962241995,-250.0,0.00015934,2]
[420318826,1775962242011,-301.21,0.00015934,2]
[420318827,1775962242021,-838.7365796,0.0001597,2]
[420318828,1775962242036,-500.0,0.00015973,2]
[420318829,1775962242054,-501.21495345,0.00015973,2]
[420318830,1775962242068,-151.0,0.00015997,2]
[420318831,1775962242093,-750.94,0.00015999,2]
[420318832,1775962242135,-750.94,0.00015999,2]
[420318833,1775962242155,-750.94,0.00015999,2]
[420318834,1775962242205,-750.94,0.00015999,2]
[420318835,1775962242223,-750.94,0.00015999,2]
[420318836,1775962242255,-750.94,0.00015999,2]
[420318837,1775962242267,-750.94,0.00015999,2]
[420318838,1775962242302,-750.94,0.00015999,2]
[420318839,1775962242314,-750.94,0.00015999,2]
[420318840,1775962242334,-500.0,0.00015999,2]
[420318841,1775962242360,-500.0,0.00015999,2]
[420318842,1775962242379,-500.0,0.00015999,2]
[420318843,1775962242395,-500.0,0.00015999,2]
[420318844,1775962242405,-605.51729897,0.00015999,2]
[420318845,1775962242427,-155.452,0.00015999,2]
[420318846,1775962242437,-209.82,0.00015999,2]
[420318847,1775962242447,-500.0,0.00015999,2]
[420318848,1775962242457,-500.0,0.00015999,2]
[420318849,1775962242474,-500.0,0.00015999,2]
[420318850,1775962242485,-361.23775631,0.00015999,2]
[420318851,1775962242495,-500.0,0.00015999,2]
[420318852,1775962242513,-500.0,0.00015999,2]
[420318853,1775962242527,-500.0,0.00015999,2]
[420318854,1775962242537,-500.0,0.00015999,2]
[420318855,1775962242547,-500.0,0.00015999,2]
[420318856,1775962242557,-500.0,0.00015999,2]
[420318857,1775962242567,-500.0,0.00015999,2]
[420318858,1775962242581,-500.0,0.00015999,2]
[420318859,1775962242591,-500.0,0.00015999,2]
[420318860,1775962242608,-481.46210725,0.00015999,2]
[420318861,1775962242617,-500.0,0.00015999,2]
[420318862,1775962242628,-206.23125623,0.00015999,2]
[420318863,1775962242655,-500.0,0.00015999,2]
[420318864,1775962242665,-351.43686328,0.00015999,2]
[420318865,1775962242690,-337.02347507,0.00015999,2]
[420318866,1775962242717,-386973.68596198,0.00016,2]
[420318867,1775962242727,-223678.91926336,0.00016,2]
[420318868,1775962242739,-24058.95152256,0.00016,2]
[420318869,1775962242757,-151.0,0.00016,2]
[420318870,1775962242780,-1048.99691,0.00016,2]
[420318871,1775962242790,-1048.99692,0.00016,2]
[420318872,1775962242811,-1048.99691,0.00016,2]
[420318873,1775962242820,-433.0,0.0001604,2]
[420318874,1775962242831,-209.82,0.00016273,2]
[420318875,1775962242840,-3006.74,0.00016282,2]
[420318876,1775962242864,-208.47,0.00016338,2]
[420318877,1775962242876,-956.66,0.00016338,2]
[420318878,1775962242898,-340.43264599,0.00016377,2]
[420318879,1775962242908,-2000.0,0.000164,2]
[420318880,1775962242922,-240.0,0.00016438,2]
[420318881,1775962242943,-832.95,0.00016438,2]
[420318882,1775962242971,-209.82,0.00016547,2]
[420318883,1775962242980,-1463.0,0.0001667,5]
[420318884,1775962242990,-3006.74,0.0001667,2]
[420318885,1775962243006,-350.0,0.00016774,4]
[420318886,1775962243021,-209.82,0.00016821,2]
[420318887,1775962243030,-171.13,0.00016902,2]
[420318888,1775962243041,-350.0,0.00017,2]
[420318889,1775962243051,-150.5543,0.00017,2]
[420318890,1775962243064,-3006.74,0.00017058,2]
[420318891,1775962243079,-209.84280408,0.00017095,2]
[420318892,1775962243089,-164.93,0.00017274,2]
[420318893,1775962243105,-2000.0,0.00017321,2]
[420318894,1775962243123,-9512.80542095,0.00017334,2]
[420318895,1775962243133,-289.0,0.00017355,2]
[420318896,1775962243150,-327.707324,0.00017359,2]
[420318897,1775962243161,-251.96,0.00017443,2]
[420318898,1775962243178,-813.78568164,0.00017938,2]
[420318899,1775962243190,-726.06,0.00018211,2]
[420318900,1775962243204,-3268.8853826,0.00018248,2]
[420318901,1775962243220,-156.2725817,0.00018322,2]
[420318902,1775962243231,-6703.75620521,0.00018445,2]
[420318903,1775962243243,-2814.0,0.0001845,2]
[420318904,1775962243263,-164.93,0.00018602,2]
[420318905,1775962243287,-500.0,0.00018613,2]
[420318906,1775962243301,-1600.0,0.0001867,2]
[420318907,1775962243318,-1065.4,0.00018795,2]
[420318908,1775962243330,-314.0,0.000188,2]
[420318909,1775962243340,-400.0,0.00019,2]
[420318910,1775962243357,-198.0,0.00019,2]
[420318912,1775962243373,-158.0,0.00019,2]
[420318914,1775962243384,-157.0,0.00019,2]
[420318916,1775962243399,-210.0,0.00019,2]
[420318918,1775962243423,-500.0,0.00019052,2]
[420318921,1775962243433,-2000.0,0.00019053,2]
[420318923,1775962243468,-500.0,0.00019171,2]
[420318925,1775962243478,-227.6304403,0.00019336,2]
[420318927,1775962243503,-151.1107,0.000194,2]
[420318929,1775962243521,-251.96,0.00019606,2]
[420318931,1775962243531,-516.18,0.00019729,2]
[420318933,1775962243546,-509.15782635,0.00019746,2]
[420318935,1775962243564,-164.93,0.00019931,2]
[420318937,1775962243574,-9512.80542095,0.00019984,2]
[420318939,1775962243588,-750.94,0.00019999,2]
[420318941,1775962243601,-200.0,0.0002,2]
[420318942,1775962243611,-177.94750118,0.0002,2]
[420318944,1775962243620,-398.0,0.0002,2]
[420318945,1775962243650,-198.0,0.0002,2]
[420318946,1775962243660,-171.72782971,0.0002,2]
[420318947,1775962243669,-167.68651559,0.0002,2]
[420318948,1775962243682,-210.0,0.0002,2]
[420318949,1775962243695,-505.789594,0.0002,2]
[420318950,1775962243707,-471.85,0.00020003,2]
[420318951,1775962243717,-151.0,0.00020097,2]
[420318952,1775962243742,-2000.0,0.000201,2]
[420318953,1775962243753,-472.06,0.00020144,2]
[420318954,1775962243779,-150.0,0.00020215,2]
[420318955,1775962243788,-300.11398471,0.00020274,2]
[420318956,1775962243801,-455.98,0.00020398,2]
[420318957,1775962243821,-455.98,0.00020525,2]
[420318958,1775962243845,-455.98,0.00020653,2]
[420318959,1775962243855,-455.98,0.0002078,2]
[420318960,1775962243865,-2000.0,0.00020785,2]
[420318961,1775962243879,-456.0,0.00020907,2]
[420318962,1775962243894,-6703.75620521,0.0002099,2]
[420318963,1775962243904,-398.0,0.00021,2]
[420318964,1775962243913,-198.0,0.00021,2]
[420318965,1775962243925,-210.0,0.00021,2]
[420318966,1775962243940,-1600.0,0.00021003,2]
[420318968,1775962243951,-2814.0,0.0002143,2]
[420318970,1775962243961,-2814.0,0.0002143,2]
[420318972,1775962243976,-1574.0,0.0002175,2]
[420318974,1775962243986,-251.96,0.00021769,2]
[420318976,1775962243999,-151.6691,0.000218,2]
[420318978,1775962244009,-3268.8853826,0.00021811,2]
[420318980,1775962244029,-5000.0,0.00021918,2]
[420318982,1775962244040,-398.0,0.00022,2]
[420318984,1775962244049,-198.0,0.00022,2]
[420318986,1775962244068,-210.0,0.00022,2]
[420318988,1775962244077,-23029.35578114,0.00022119,2]
[420318990,1775962244097,-9512.80542095,0.00022633,2]
[420318992,1775962244109,-184.37,0.00022661,2]
[420318994,1775962244119,-1416.0,0.00022729,7]
[420318996,1775962244137,-398.0,0.00023,2]
[420318999,1775962244149,-198.0,0.00023,2]
[420319001,1775962244159,-210.0,0.00023,2]
[420319003,1775962244180,-211.96,0.00023123,2]
[420319005,1775962244190,-1065.4,0.00023233,2]
[420319007,1775962244201,-1600.0,0.00023337,2]
[420319009,1775962244212,-160.0,0.00023379,2]
[420319011,1775962244230,-151.0,0.00023497,7]
[420319013,1775962244241,-1773.2803181,0.000235,2]
[420319015,1775962244250,-1028.83904472,0.000235,2]
[420319017,1775962244265,-6703.75620521,0.00023535,2]
[420319019,1775962244278,-1773.2803181,0.000237,2]
[420319021,1775962244289,-1028.83904472,0.000237,2]
[420319022,1775962244302,-254.0,0.00023719,7]
[420319023,1775962244320,-2000.0,0.000238,2]
[420319024,1775962244331,-227.6304403,0.00023887,2]
[420319025,1775962244342,-1773.2803181,0.000239,2]
[420319026,1775962244370,-1028.83904472,0.000239,2]
[420319027,1775962244382,-251.96,0.00023932,2]
[420319028,1775962244397,-3051.4395666,0.00024,2]
[420319029,1775962244415,-398.0,0.00024,2]
[420319030,1775962244428,-203.0555603,0.00024,2]
[420319031,1775962244442,-228.16045799,0.00024,2]
[420319032,1775962244458,-1101.01385598,0.00024173,10]
[420319033,1775962244471,-151.0,0.00024174,2]
[420319035,1775962244488,-9999.99,0.00024174,2]
[420319038,1775962244510,-9999.99,0.00024174,2]
[420319040,1775962244520,-150.99,0.00024174,2]
[420319042,1775962244546,-299.99,0.00024174,7]
[420319044,1775962244556,-1773.2803181,0.000242,2]
[420319045,1775962244571,-1028.83904472,0.000242,2]
[420319047,1775962244587,-152.2296,0.000242,2]
[420319049,1775962244598,-1773.2803181,0.000244,2]
[420319052,1775962244616,-1028.83904472,0.000244,2]
[420319054,1775962244630,-3538.514,0.00024556,2]
[420319056,1775962244645,-1050.09,0.00024556,2]
[420319058,1775962244669,-1350.936,0.00024556,2]
[420319060,1775962244678,-1267.656,0.00024556,2]
[420319062,1775962244688,-3775.0,0.00024556,2]
[420319064,1775962244702,-2472.0,0.00024556,2]
[420319065,1775962244714,-991.5049,0.00024558,2]
[420319067,1775962244725,-151.0,0.00024655,7]
[420319069,1775962244742,-239.00697239,0.00024655,7]
[420319070,1775962244755,-700.9335269,0.00024657,2]
[420319071,1775962244766,-750.94,0.00024657,2]
[420319072,1775962244781,-750.94,0.00024657,2]
[420319073,1775962244795,-500.0,0.00024657,2]
[420319074,1775962244805,-1000.0,0.00024658,2]
[420319075,1775962244826,-151.902147,0.00024658,2]
[420319076,1775962244836,-151.850288,0.00024658,2]
[420319077,1775962244851,-217.900251,0.00024658,2]
[420319078,1775962244861,-151.0,0.00024658,2]
[420319079,1775962244871,-151.0,0.00024658,2]
[420319080,1775962244885,-225.188961,0.00024658,2]
[420319081,1775962244897,-152.478295,0.00024658,2]
[420319082,1775962244908,-151.809313,0.00024658,2]
[420319083,1775962244918,-153.590564,0.00024658,2]
[420319084,1775962244930,-151.0,0.00024658,2]
[420319085,1775962244947,-151.0,0.00024658,2]
[420319086,1775962244957,-151.0,0.00024658,2]
[420319087,1775962244971,-151.0,0.00024658,2]
[420319088,1775962244981,-151.0,0.00024658,2]
[420319089,1775962244995,-151.0,0.00024658,2]
[420319090,1775962245008,-185.153184,0.00024658,2]
[420319091,1775962245018,-151.0,0.00024658,2]
[420319092,1775962245030,-170.291554,0.00024658,2]
[420319093,1775962245045,-151.0,0.00024658,2]
[420319094,1775962245055,-151.522047,0.00024658,2]
[420319095,1775962245065,-196.109048,0.00024658,2]
[420319096,1775962245082,-151.0,0.00024658,2]
[420319097,1775962245093,-151.0,0.00024658,2]
[420319098,1775962245103,-151.0,0.00024658,2]
[420319099,1775962245117,-151.0,0.00024658,2]
[420319100,1775962245134,-352.131297,0.00024658,2]
[420319101,1775962245145,-352.131297,0.00024658,2]
[420319102,1775962245158,-151.0,0.00024658,2]
[420319103,1775962245172,-151.0,0.00024658,2]
[420319104,1775962245182,-352.131297,0.00024658,2]
[420319105,1775962245194,-352.131297,0.00024658,2]
[420319106,1775962245217,-151.0,0.00024658,2]
[420319107,1775962245227,-352.131297,0.00024658,2]
[420319108,1775962245253,-151.0,0.00024658,2]
[420319109,1775962245263,-151.977517,0.00024658,2]
[420319110,1775962245280,-352.131297,0.00024658,2]
[420319111,1775962245292,-352.131297,0.00024658,2]
[420319112,1775962245302,-352.131297,0.00024658,2]
[420319113,1775962245316,-647.787331,0.00024658,2]
[420319114,1775962245328,-647.787331,0.00024658,2]
[420319115,1775962245338,-647.787331,0.00024658,2]
[420319116,1775962245350,-647.787331,0.00024658,2]
[420319117,1775962245375,-647.787331,0.00024658,2]
[420319118,1775962245385,-647.787331,0.00024658,2]
[420319119,1775962245395,-647.787331,0.00024658,2]
[420319120,1775962245407,-647.787331,0.00024658,2]
[420319121,1775962245425,-1748.10636,0.00024658,2]
[420319122,1775962245437,-1748.10636,0.00024658,2]
[420319123,1775962245446,-1748.10636,0.00024658,2]
[420319124,1775962245473,-1748.10636,0.00024658,2]
[420319125,1775962245482,-1748.10636,0.00024658,2]
[420319126,1775962245505,-1748.10636,0.00024658,2]
[420319127,1775962245515,-1748.10636,0.00024658,2]
[420319128,1775962245528,-1748.10636,0.00024658,2]
[420319129,1775962245547,-151.0,0.00024658,2]
[420319130,1775962245556,-151.0,0.00024658,2]
[420319131,1775962245571,-151.0,0.00024658,2]
[420319132,1775962245594,-151.0,0.00024658,2]
[420319133,1775962245604,-151.0,0.00024658,2]
[420319134,1775962245625,-151.0,0.00024658,2]
[420319135,1775962245635,-151.0,0.00024658,2]
[420319136,1775962245644,-1168.756825,0.00024658,2]
[420319137,1775962245660,-1168.756825,0.00024658,2]
[420319138,1775962245683,-1168.756825,0.00024658,2]
[420319139,1775962245692,-1168.756825,0.00024658,2]
[420319140,1775962245702,-1168.756825,0.00024658,2]
[420319141,1775962245728,-1168.756825,0.00024658,2]
[420319142,1775962245738,-151.0,0.00024658,2]
[420319143,1775962245757,-151.0,0.00024658,2]
[420319144,1775962245776,-1168.756825,0.00024658,2]
[420319145,1775962245786,-1168.756825,0.00024658,2]
[420319146,1775962245802,-151.0,0.00024658,2]
[420319147,1775962245824,-158.074893,0.00024658,2]
[420319148,1775962245846,-151.384129,0.00024658,2]
[420319149,1775962245883,-371.579129,0.00024658,2]
[420319150,1775962245892,-371.579129,0.00024658,2]
[420319151,1775962245908,-371.579129,0.00024658,2]
[420319152,1775962245918,-371.579129,0.00024658,2]
[420319153,1775962245929,-371.579129,0.00024658,2]
[420319154,1775962245944,-371.579129,0.00024658,2]
[420319155,1775962245958,-371.579129,0.00024658,2]
[420319156,1775962245971,-371.579129,0.00024658,2]
[420319157,1775962245985,-1849.038384,0.00024658,2]
[420319158,1775962246004,-1849.038384,0.00024658,2]
[420319159,1775962246013,-1849.038384,0.00024658,2]
[420319160,1775962246040,-1849.038384,0.00024658,2]
[420319161,1775962246051,-1849.038384,0.00024658,2]
[420319162,1775962246063,-1849.038384,0.00024658,2]
[420319163,1775962246075,-1849.038384,0.00024658,2]
[420319164,1775962246086,-1849.038384,0.00024658,2]
[420319165,1775962246096,-151.0,0.00024658,2]
[420319166,1775962246116,-151.0,0.00024658,2]
[420319167,1775962246128,-151.0,0.00024658,2]
[420319168,1775962246157,-151.0,0.00024658,2]
[420319169,1775962246194,-375.410957,0.00024658,2]
[420319170,1775962246247,-375.410957,0.00024658,2]
[420319171,1775962246285,-375.410957,0.00024658,2]
[420319172,1775962246307,-375.410957,0.00024658,2]
[420319173,1775962246318,-375.410957,0.00024658,2]
[420319174,1775962246339,-375.410957,0.00024658,2]
[420319175,1775962246350,-375.410957,0.00024658,2]
[420319176,1775962246369,-375.410957,0.00024658,2]
[420319177,1775962246384,-157.252706,0.00024658,2]
[420319178,1775962246393,-151.0,0.00024658,2]
[420319179,1775962246412,-151.0,0.00024658,2]
[420319180,1775962246427,-151.0,0.00024658,2]
[420319181,1775962246441,-151.0,0.00024658,2]
[420319182,1775962246466,-151.0,0.00024658,2]
[420319183,1775962246476,-159.87412,0.00024658,2]
[420319184,1775962246499,-151.0,0.00024658,2]
[420319185,1775962246511,-151.0,0.00024658,2]
[420319186,1775962246521,-151.0,0.00024658,2]
[420319187,1775962246549,-151.0,0.00024658,2]
[420319188,1775962246559,-151.0,0.00024658,2]
[420319189,1775962246582,-151.0,0.00024658,2]
[420319190,1775962246594,-185.4904,0.00024658,2]
[420319191,1775962246604,-151.0,0.00024658,2]
[420319192,1775962246623,-151.0,0.00024658,2]
[420319193,1775962246642,-151.0,0.00024658,2]
[420319194,1775962246652,-151.0,0.00024658,2]
[420319195,1775962246677,-151.0,0.00024658,2]
[420319196,1775962246699,-153.685562,0.00024658,2]
[420319197,1775962246716,-153.773176,0.00024658,2]
[420319198,1775962246765,-151.0,0.00024658,2]
[420319199,1775962246797,-151.0,0.00024658,2]
[420319200,1775962246863,-151.0,0.00024658,2]
[420319203,1775962247230,-151.0,0.00024658,2]
[420319204,1775962247275,-151.0,0.00024658,2]
[420319205,1775962247286,-151.0,0.00024658,2]
[420319206,1775962247295,-151.0,0.00024658,2]
[420319207,1775962247321,-151.0,0.00024658,2]
[420319208,1775962247332,-552.004326,0.00024658,2]
[420319209,1775962247348,-552.004326,0.00024658,2]
[420319210,1775962247362,-552.004326,0.00024658,2]
[420319211,1775962247373,-552.004326,0.00024658,2]
[420319212,1775962247389,-552.004326,0.00024658,2]
[420319213,1775962247403,-552.004326,0.00024658,2]
[420319214,1775962247419,-552.004326,0.00024658,2]
[420319215,1775962247432,-552.004326,0.00024658,2]
[420319216,1775962247451,-151.0,0.00024658,2]
[420319217,1775962247460,-151.0,0.00024658,2]
[420319218,1775962247472,-151.0,0.00024658,2]
[420319219,1775962247482,-151.0,0.00024658,2]
[420319220,1775962247498,-151.0,0.00024658,2]
[420319221,1775962247513,-151.0,0.00024658,2]
[420319222,1775962247529,-151.0,0.00024658,2]
[420319223,1775962247539,-151.0,0.00024658,2]
[420319224,1775962247551,-162.790497,0.00024658,2]
[420319225,1775962247580,-672.758241,0.00024658,2]
[420319226,1775962247595,-672.758241,0.00024658,2]
[420319227,1775962247612,-672.758241,0.00024658,2]
[420319228,1775962247636,-672.758241,0.00024658,2]
[420319229,1775962247646,-179.698943,0.00024658,2]
[420319230,1775962247674,-672.758241,0.00024658,2]
[420319231,1775962247684,-199.708838,0.00024658,2]
[420319232,1775962247705,-672.758241,0.00024658,2]
[420319233,1775962247718,-199.708838,0.00024658,2]
[420319234,1775962247728,-151.0,0.00024658,2]
[420319235,1775962247744,-199.708838,0.00024658,2]
[420319236,1775962247758,-151.0,0.00024658,2]
[420319237,1775962247769,-672.758241,0.00024658,2]
[420319238,1775962247786,-199.708838,0.00024658,2]
[420319239,1775962247814,-672.758241,0.00024658,2]
[420319240,1775962247828,-158.336436,0.00024658,2]
[420319241,1775962247838,-151.0,0.00024658,2]
[420319242,1775962247858,-199.708838,0.00024658,2]
[420319243,1775962247868,-151.0,0.00024658,2]
[420319244,1775962247886,-151.0,0.00024658,2]
[420319245,1775962247897,-163.926025,0.00024658,2]
[420319246,1775962247914,-199.708838,0.00024658,2]
[420319247,1775962247924,-199.708838,0.00024658,2]
[420319248,1775962247934,-199.708838,0.00024658,2]
[420319249,1775962247945,-151.0,0.00024658,2]
[420319250,1775962247962,-151.0,0.00024658,2]
[420319251,1775962247972,-172.141645,0.00024658,2]
[420319252,1775962247982,-204.376219,0.00024658,2]
[420319253,1775962247994,-284.187834,0.00024658,2]
[420319254,1775962248007,-204.376219,0.00024658,2]
[420319255,1775962248017,-151.0,0.00024658,2]
[420319256,1775962248027,-204.376219,0.00024658,2]
[420319257,1775962248041,-151.0,0.00024658,2]
[420319258,1775962248051,-204.376219,0.00024658,2]
[420319259,1775962248071,-204.376219,0.00024658,2]
[420319260,1775962248081,-204.376219,0.00024658,2]
[420319261,1775962248091,-151.0,0.00024658,2]
[420319262,1775962248103,-164.461941,0.00024658,2]
[420319263,1775962248116,-151.0,0.00024658,2]
[420319264,1775962248126,-151.0,0.00024658,2]
[420319265,1775962248136,-204.376219,0.00024658,2]
[420319266,1775962248150,-204.376219,0.00024658,2]
[420319267,1775962248168,-151.0,0.00024658,2]
[420319268,1775962248177,-151.0,0.00024658,2]
[420319269,1775962248189,-151.0,0.00024658,2]
[420319270,1775962248205,-151.0,0.00024658,2]
[420319271,1775962248215,-338.849873,0.00024658,2]
[420319272,1775962248225,-338.849873,0.00024658,2]
[420319273,1775962248238,-338.849873,0.00024658,2]
[420319274,1775962248250,-338.849873,0.00024658,2]
[420319275,1775962248270,-338.849873,0.00024658,2]
[420319276,1775962248281,-338.849873,0.00024658,2]
[420319277,1775962248299,-338.849873,0.00024658,2]
[420319278,1775962248309,-338.849873,0.00024658,2]
[420319279,1775962248319,-152.977844,0.00024658,2]
[420319280,1775962248331,-151.0,0.00024658,2]
[420319281,1775962248342,-151.0,0.00024658,2]
[420319282,1775962248357,-169.693522,0.00024658,2]
[420319283,1775962248369,-151.0,0.00024658,2]
[420319284,1775962248379,-151.0,0.00024658,2]
[420319285,1775962248396,-151.0,0.00024658,2]
[420319286,1775962248406,-364.119888,0.00024658,2]
[420319287,1775962248416,-364.119888,0.00024658,2]
[420319288,1775962248434,-281.154448,0.00024658,2]
[420319289,1775962248444,-151.76443,0.00024658,2]
[420319290,1775962248454,-364.119888,0.00024658,2]
[420319291,1775962248471,-281.154448,0.00024658,2]
[420319292,1775962248481,-151.0,0.00024658,2]
[420319293,1775962248500,-281.154448,0.00024658,2]
[420319294,1775962248511,-364.119888,0.00024658,2]
[420319295,1775962248520,-151.0,0.00024658,2]
[420319296,1775962248539,-281.154448,0.00024658,2]
[420319297,1775962248556,-151.0,0.00024658,2]
[420319298,1775962248567,-151.0,0.00024658,2]
[420319299,1775962248577,-151.0,0.00024658,2]
[420319300,1775962248586,-151.0,0.00024658,2]
[420319301,1775962248604,-151.0,0.00024658,2]
[420319302,1775962248627,-151.0,0.00024658,2]
[420319303,1775962248637,-214.175912,0.00024658,2]
[420319304,1775962248650,-352.131297,0.00024658,2]
[420319305,1775962248674,-151.0,0.00024658,2]
[420319306,1775962248695,-352.131297,0.00024658,2]
[420319307,1775962248722,-173.073041,0.00024658,2]
[420319308,1775962248732,-352.131297,0.00024658,2]